bitfinex-derivatives/quotes_SOLF0:USTF0_20250523
["timestamp","ask_amount","ask_price","bid_price","bid_amount"]
[1748007712086,9.736e-05,178.86,178.85,775.75419131]
[1748007712286,9.736e-05,178.86,178.85,740.88]
[1748007713192,9.736e-05,178.86,178.85,746.4696]
[1748007713594,9.736e-05,178.86,178.82,0.04131659]
[1748007713794,9.736e-05,178.86,178.82,106.28131659]
[1748007714198,9.736e-05,178.86,178.82,0.04131659]
[1748007715595,9.736e-05,178.86,178.85,5.5896]
[1748007715794,9.736e-05,178.86,178.82,0.04131659]
[1748007716190,9.736e-05,178.86,178.85,5.5896]
[1748007718103,9.736e-05,178.86,178.84,5.5899]
[1748007718405,9.736e-05,178.86,178.83,257.66]
[1748007719491,9.736e-05,178.86,178.84,5.5897]
[1748007719702,9.736e-05,178.86,178.83,257.66]
[1748007721404,9.736e-05,178.86,178.85,5.5896]
[1748007721799,1.9449,178.97,178.85,29.28459131]
[1748007721990,1.9449,178.97,178.94,5.5867]
[1748007722604,1.9449,178.97,178.93,5.587]
[1748007722902,1.98163872,178.97,178.93,5.62563193]
[1748007723104,0.03673872,178.97,178.93,0.03863193]
[1748007724001,0.03673872,178.97,178.89,106.18]
[1748007724897,0.03673872,178.97,178.91,0.03631704]
[1748007725402,0.03673872,178.97,178.76,23.68459131]
[1748007725607,23.68459131,178.94,178.81,151.42]
[1748007725808,151.42,178.93,178.82,5.5903]
[1748007726103,151.42,178.93,178.81,151.42]
[1748007726303,5.5887,178.88,178.85,0.04134295]
[1748007726505,0.04181734,178.89,178.85,0.04134295]
[1748007726707,0.04181734,178.89,178.88,5.5887]
[1748007726899,0.04181734,178.89,178.85,0.04134295]
[1748007727200,0.04181734,178.89,178.81,151.42]
[1748007727405,151.44,178.88,178.76,151.44]
[1748007727597,23.68459131,178.83,178.72,151.44]
[1748007727798,5.5919,178.78,178.74,5.593]
[1748007727998,23.68459131,178.87,178.72,151.44]
[1748007728205,0.04126566,178.81,178.78,0.04166302]
[1748007729103,0.04126566,178.81,178.8,5.5912]
[1748007729910,0.04126566,178.81,178.8,111.7912]
[1748007730307,6.566e-05,178.81,178.8,111.7912]
[1748007731927,6.566e-05,178.81,178.8,106.2]
[1748007732223,6.566e-05,178.81,178.78,0.04166302]
[1748007733530,6.566e-05,178.81,178.69,1.8851]
[1748007733531,6.566e-05,178.81,178.7,157.0742]
[1748007733729,25.68789131,178.85,178.7,151.48]
[1748007734029,23.68459131,178.81,178.7,151.48]
[1748007734229,1.9404,178.8,178.7,151.48]
[1748007734429,0.04200363,178.77,178.73,0.03766216]
[1748007734632,0.04200363,178.77,178.76,5.5922]
[1748007735033,2.0033,178.85,178.75,151.48]
[1748007735229,2.0033,178.85,178.74,1.9993]
[1748007735432,1.8373,178.84,178.75,257.7]
[1748007736129,0.03978785,178.81,178.78,0.04183764]
[1748007736430,0.03978785,178.81,178.8,5.5912]
[1748007736625,1.8373,178.91,178.8,151.48]
[1748007736926,23.68459131,178.98,178.77,483.02]
[1748007737129,27.50429131,178.94,178.78,257.7]
[1748007737327,27.50429131,178.94,178.84,5.5897]
[1748007737631,23.68459131,178.9,178.87,0.03844074]
[1748007737829,23.68459131,178.9,178.77,483.02]
[1748007738128,23.68459131,178.85,178.77,483.02]
[1748007738524,23.68459131,178.89,178.77,483.02]
[1748007738828,23.72495681,178.85,178.81,0.03990424]
[1748007739019,1.8972,178.84,178.77,634.5]
[1748007739225,5.5914,178.8,178.77,634.5]
[1748007739423,3.86,178.84,178.77,483.02]
[1748007739727,5.5917,178.79,178.77,483.02]
[1748007740029,0.04188494,178.8,178.77,483.02]
[1748007740533,0.04188494,178.8,178.76,0.03656132]
[1748007740927,0.04188494,178.8,178.68,484.8641]
[1748007740928,23.72647625,178.8,178.72,151.48]
[1748007741232,5.593,178.75,178.71,5.5939]
[1748007741420,23.68459131,178.76,178.66,4.91494097]
[1748007741622,2.0137,178.75,178.66,10.51024097]
[1748007741823,5.5941,178.71,178.69,0.04141831]
[1748007742328,0.0356867,178.72,178.66,4.91494097]
[1748007742932,0.0356867,178.72,178.7,5.5942]
[1748007743230,0.0356867,178.72,178.69,0.0358327]
[1748007743631,0.0356867,178.72,178.63,151.48]
[1748007744628,5.6294867,178.72,178.68,5.5947]
[1748007744827,0.0356867,178.72,178.66,0.03841573]
[1748007745135,0.0356867,178.72,178.69,5.5944]
[1748007745339,0.0356867,178.72,178.66,0.03841573]
[1748007745639,0.0356867,178.72,178.69,5.5946]
[1748007745829,0.0356867,178.72,178.66,0.03841573]
[1748007746132,2.0640867,178.72,178.66,0.03841573]
[1748007746333,2.0640867,178.72,178.63,151.48]
[1748007747134,5.5945,178.7,178.65,5.5957]
[1748007747337,1.9291,178.71,178.66,0.02581521]
[1748007747636,0.03796072,178.7,178.66,0.02581521]
[1748007747834,0.03796072,178.7,178.63,151.48]
[1748007748030,0.03796072,178.7,178.59,151.54]
[1748007748337,176.5953,178.69,178.64,5.5966]
[1748007748542,171.0,178.68,178.64,5.5966]
[1748007748837,171.0,178.68,178.59,151.54]
[1748007749035,171.0391089,178.68,178.59,151.54]
[1748007749431,0.0391089,178.68,178.66,5.5957]
[1748007749631,0.0391089,178.68,178.59,151.54]
[1748007750244,0.0391089,178.68,178.59,175.22459131]
[1748007750435,0.0391089,178.68,178.59,175.40019131]
[1748007750738,151.58,178.82,178.63,23.68459131]
[1748007750928,153.4599,178.82,178.64,153.5798]
[1748007751125,1.8799,178.82,178.64,153.5798]
[1748007751338,1.8799,178.82,178.67,23.68459131]
[1748007751534,0.03941486,178.76,178.73,0.0391089]
[1748007751844,0.03941486,178.76,178.74,151.6]
[1748007752331,0.03941486,178.76,178.73,0.0391089]
[1748007753331,0.03941486,178.76,178.69,151.6]
[1748007753526,0.03941486,178.76,178.65,257.72]
[1748007753841,151.42,178.76,178.63,257.72]
[1748007754342,0.04216434,178.71,178.63,257.72]
[1748007754840,0.04216434,178.71,178.61,5.5974]
[1748007755040,0.03972635,178.68,178.6,4.91494097]
[1748007755431,0.03972635,178.68,178.6,1.86464097]
[1748007755932,23.68459131,178.65,178.58,6.64628549]
[1748007756139,0.04195408,178.63,178.58,6.64628549]
[1748007756335,171.0,178.62,178.58,6.64628549]
[1748007756532,5.5982,178.59,178.58,6.64628549]
[1748007756731,23.68459131,178.61,178.55,9.79710498]
[1748007756933,0.04251873,178.6,178.55,9.79710498]
[1748007760240,0.04214917,178.56,178.53,0.03657355]
[1748007761438,5.5998,178.54,178.53,0.03657355]
[1748007762044,0.04214917,178.56,178.53,0.03657355]
[1748007763143,5.5998,178.54,178.53,0.03657355]
[1748007763444,0.04214917,178.56,178.53,0.03657355]
[1748007764141,5.5995,178.55,178.53,0.03657355]
[1748007764343,0.04214917,178.56,178.53,0.03657355]
[1748007765245,0.04214917,178.56,178.53,5.63647355]
[1748007765447,0.04214917,178.56,178.53,0.03657355]
[1748007768047,5.64154917,178.56,178.53,0.03657355]
[1748007768234,0.04214917,178.56,178.53,0.03657355]
[1748007768439,5.5998,178.54,178.53,0.03657355]
[1748007768834,0.04214917,178.56,178.53,0.03657355]
[1748007769035,1.9669,178.64,178.53,106.43657355]
[1748007769242,1.9669,178.64,178.54,2.0217]
[1748007769945,151.56,178.71,178.56,23.68459131]
[1748007770151,0.03924389,178.65,178.62,0.04049506]
[1748007770848,25.67079131,178.74,178.62,0.04049506]
[1748007770849,1.9862,178.74,178.62,0.04049506]
[1748007771043,6.84907576,178.77,178.74,5.5935]
[1748007771234,6.84907576,178.77,178.72,257.96]
[1748007771436,3.79737576,178.77,178.73,153.4089]
[1748007771633,13.64865322,178.84,178.73,153.4089]
[1748007771850,0.0411838,178.78,178.74,0.03926052]
[1748007772049,7.18383143,178.79,178.74,0.03926052]
[1748007772242,7.18383143,178.79,178.74,257.95926052]
[1748007772447,0.398,178.87,178.74,257.95926052]
[1748007772650,0.398,178.87,178.74,257.92]
[1748007772948,0.03826182,178.82,178.79,0.03624436]
[1748007773154,5.5917,178.8,178.79,0.03624436]
[1748007773541,0.03826182,178.82,178.66,23.68459131]
[1748007773749,5.5942,178.72,178.65,7.618]
[1748007773947,1.9377,178.81,178.65,7.618]
[1748007773948,151.54,178.77,178.65,259.9417]
[1748007774445,0.04196072,178.73,178.69,0.03725644]
[1748007774855,5.5948,178.7,178.69,0.03725644]
[1748007775044,0.04196072,178.73,178.69,0.03725644]
[1748007775957,5.5947,178.71,178.69,0.03725644]
[1748007776157,0.04196072,178.73,178.69,0.03725644]
[1748007776542,5.5948,178.7,178.69,0.03725644]
[1748007777146,0.04196072,178.73,178.69,0.03725644]
[1748007777447,171.0,178.72,178.69,0.03725644]
[1748007777644,151.5,178.72,178.6,1.9531]
[1748007777849,151.5,178.72,178.44,11.2056]
[1748007777850,1.8543,178.71,178.54,3.8647]
[1748007778049,23.68459131,178.68,178.54,5.8468]
[1748007778250,151.5,178.67,178.54,1.9821]
[1748007778445,2.0182,178.66,178.54,1.9821]
[1748007778650,0.0391572,178.62,178.58,0.03653014]
[1748007779144,5.5983,178.59,178.58,0.03653014]
[1748007779961,151.5,178.61,178.49,1.9821]
[1748007780153,153.3543,178.61,178.49,1.9821]
[1748007780557,153.3543,178.61,178.48,151.5]
[1748007780751,23.68459131,178.59,178.45,2.0192]
[1748007780951,0.04197112,178.54,178.5,0.0409855]
[1748007781156,0.04197112,178.54,178.43,151.5]
[1748007781452,2.0282,178.54,178.43,151.5]
[1748007781655,2.0282,178.54,178.43,157.1031]
[1748007781854,2.0282,178.54,178.43,151.5]
[1748007782059,2.0282,178.54,178.44,5.6027]
[1748007782250,0.04038726,178.51,178.43,151.5]
[1748007782758,5.6027,178.45,178.4,4.018]
[1748007782951,0.04108547,178.44,178.4,2.0016]
[1748007783362,0.04108547,178.44,178.41,5.6039]
[1748007783659,0.04108547,178.44,178.4,2.0016]
[1748007783862,5.64408547,178.44,178.39,151.5]
[1748007784262,0.04108547,178.44,178.37,106.38]
[1748007785466,0.04108547,178.44,178.43,5.6033]
[1748007785654,0.04108547,178.44,178.41,151.26]
[1748007786149,0.04108547,178.44,178.36,25.70099131]
[1748007786354,0.04108547,178.44,178.37,257.64]
[1748007787270,0.04108547,178.44,178.37,263.2449]
[1748007787559,0.04108547,178.44,178.37,257.64]
[1748007787760,0.04108547,178.44,178.4,5.604]
[1748007788073,0.04108547,178.44,178.37,257.64]
[1748007788256,5.6008,178.51,178.37,257.64]
[1748007788462,1.9307,178.53,178.37,257.64]
[1748007788769,151.28,178.54,178.38,23.68459131]
[1748007788966,151.28,178.54,178.39,1.9741]
[1748007789471,0.04223599,178.48,178.45,0.03606415]
[1748007789764,1.8544,178.6,178.47,23.68459131]
[1748007789965,1.8544,178.6,178.48,259.6606]
[1748007790266,5.5987,178.58,178.48,259.6606]
[1748007790563,0.03805302,178.55,178.51,0.0380174]
[1748007790762,5.6005,178.52,178.51,1.74e-05]
[1748007791669,0.03805302,178.55,178.51,1.74e-05]
[1748007792057,5.6005,178.52,178.51,1.74e-05]
[1748007792463,11.2005,178.52,178.51,1.74e-05]
[1748007792663,5.6,178.52,178.36,6.75555738]
[1748007792970,23.68459131,178.49,178.36,12.36105738]
[1748007793270,5.6034,178.43,178.36,6.75555738]
[1748007793466,153.1626,178.48,178.36,6.75555738]
[1748007793665,5.64489221,178.44,178.4,0.03971145]
[1748007793864,0.04179221,178.44,178.4,0.03971145]
[1748007794173,5.6036,178.43,178.4,0.03971145]
[1748007794364,0.04179221,178.44,178.4,0.03971145]
[1748007795969,483.94,178.53,178.4,0.03971145]
[1748007796169,157.2952,178.61,178.42,23.68459131]
[1748007796473,171.0,178.6,178.46,5.6021]
[1748007796673,194.68459131,178.6,178.43,155.265]
[1748007796966,194.68459131,178.6,178.5,5.6011]
[1748007797273,0.0373363,178.57,178.5,0.03546914]
[1748007798069,0.0373363,178.57,178.5,5.63656914]
[1748007798377,0.0373363,178.57,178.5,0.03546914]
[1748007799375,0.0373363,178.57,178.5,106.47546914]
[1748007800459,5.6005,178.52,178.5,106.47546914]
[1748007800771,0.04029428,178.53,178.5,106.47546914]
[1748007800968,0.04029428,178.53,178.5,112.07656914]
[1748007801167,0.04029428,178.53,178.5,106.47546914]
[1748007803772,151.32,178.61,178.5,0.03546914]
[1748007803966,151.32,178.61,178.48,151.34]
[1748007804163,3.8135,178.63,178.49,23.68459131]
[1748007804376,171.0,178.71,178.53,23.68459131]
[1748007804575,157.2131,178.74,178.54,261.5604]
[1748007804767,0.03624914,178.66,178.62,0.04208413]
[1748007805077,0.0371954,178.66,178.62,0.03758095]
[1748007805874,155.1828,178.74,178.63,106.42]
[1748007806761,5.5957,178.68,178.67,0.04249629]
[1748007808073,151.26,178.69,178.53,23.68459131]
[1748007808273,153.2643,178.69,178.55,257.68]
[1748007808874,23.68459131,178.68,178.55,257.68]
[1748007809078,5.5976,178.62,178.6,0.0360858]
[1748007809376,0.0416749,178.63,178.6,0.0360858]
[1748007809874,5.5977,178.61,178.6,0.0360858]
[1748007810271,5.6389749,178.63,178.6,0.0360858]
[1748007810571,0.0416749,178.63,178.6,0.0360858]
[1748007810772,5.5977,178.61,178.6,0.0360858]
[1748007811272,0.0416749,178.63,178.6,0.0360858]
[1748007814773,0.0416749,178.63,178.6,5.6337858]
[1748007814973,0.0416749,178.63,178.6,0.0360858]
[1748007815178,0.0416749,178.63,178.61,150.8]
[1748007815366,171.0,178.73,178.61,150.8]
[1748007815568,3.8628,178.74,178.61,152.7427]
[1748007815772,5.5959,178.67,178.61,152.7427]
[1748007816464,5.63218663,178.66,178.62,0.03812018]
[1748007816675,0.03578663,178.66,178.62,0.04076666]
[1748007818573,5.597,178.63,178.62,0.04076666]
[1748007819369,5.5986,178.59,178.56,150.78]
[1748007819574,174.93,178.65,178.52,257.14]
[1748007819776,171.0,178.64,178.52,150.78]
[1748007820070,5.5977,178.61,178.52,150.78]
[1748007820269,171.0,178.64,178.55,5.5995]
[1748007820473,171.0,178.64,178.52,150.78]
[1748007820474,0.04025162,178.61,178.58,0.04279743]
[1748007820873,150.82025162,178.61,178.58,0.04279743]
[1748007821066,5.5983,178.59,178.58,0.04279743]
[1748007821374,5.5983,178.59,178.58,9.743e-05]
[1748007824070,11.1983,178.59,178.58,9.743e-05]
[1748007824677,5.6,178.59,178.46,150.8]
[1748007824876,23.68459131,178.55,178.43,106.38]
[1748007825092,154.6417,178.54,178.43,106.38]
[1748007825289,154.6417,178.54,178.46,5.6022]
[1748007825584,5.64249219,178.52,178.48,0.04034266]
[1748007825887,0.04199219,178.52,178.49,5.6012]
[1748007826182,0.04199219,178.52,178.48,0.04034266]
[1748007826588,5.6011,178.5,178.48,0.04034266]
[1748007827486,5.6009,178.51,178.48,0.04034266]
[1748007827674,0.04199219,178.52,178.48,0.04034266]
[1748007830795,0.04199219,178.52,178.5,5.6008]
[1748007830988,0.04199219,178.52,178.48,0.04034266]
[1748007831793,0.04199219,178.52,178.51,5.6008]
[1748007832095,173.02,178.6,178.48,0.04034266]
[1748007832297,5.5992,178.57,178.46,150.84]
[1748007832795,2.02,178.6,178.46,150.84]
[1748007832997,0.04055986,178.55,178.51,0.03832221]
[1748007833388,5.64025986,178.55,178.51,0.03832221]
[1748007833588,0.04055986,178.55,178.51,0.03832221]
[1748007834597,5.6002,178.53,178.51,0.03832221]
[1748007834799,0.04055986,178.55,178.51,0.03832221]
[1748007835093,5.6005,178.52,178.51,0.03832221]
[1748007835489,3.88375986,178.55,178.51,0.03832221]
[1748007836591,0.04055986,178.55,178.51,0.03832221]
[1748007836895,0.04055986,178.55,178.53,5.6002]
[1748007837199,0.04055986,178.55,178.51,0.03832221]
[1748007837693,5.6004,178.53,178.51,0.03832221]
[1748007837993,0.04055986,178.55,178.51,0.03832221]
[1748007838296,0.04055986,178.55,178.51,5.63892221]
[1748007838495,0.04055986,178.55,178.51,0.03832221]
[1748007838992,5.6001,178.54,178.51,0.03832221]
[1748007839300,0.04055986,178.55,178.51,0.03832221]
[1748007839995,5.5999,178.54,178.51,0.03832221]
[1748007840302,0.04055986,178.55,178.51,0.03832221]
[1748007840694,5.6005,178.52,178.51,0.03832221]
[1748007841497,0.04055986,178.55,178.51,0.03832221]
[1748007842099,0.04055986,178.55,178.52,150.84]
[1748007842304,0.04055986,178.55,178.54,5.5999]
[1748007842599,154.65,178.64,178.52,152.7689]
[1748007842801,154.65,178.64,178.53,1.8401]
[1748007843192,150.84,178.64,178.53,1.8401]
[1748007843603,0.04151835,178.6,178.57,0.03800429]
[1748007843798,5.63961835,178.6,178.57,106.43800429]
[1748007844000,0.04151835,178.6,178.57,106.43800429]
[1748007844307,5.5986,178.58,178.57,0.03800429]
[1748007845305,171.0,178.57,178.48,150.3]
[1748007846304,0.04014497,178.54,178.51,0.03658062]
[1748007846805,5.6005,178.52,178.51,0.03658062]
[1748007847592,5.6005,178.52,178.51,8.062e-05]
[1748007847808,5.602,178.47,178.46,5.04655676]
[1748007848223,171.0,178.57,178.43,256.7]
[1748007848224,23.68459131,178.55,178.43,256.7]
[1748007848499,23.68459131,178.55,178.45,5.6026]
[1748007848704,5.6016,178.49,178.48,0.03946199]
[1748007849105,0.03990097,178.52,178.48,0.03946199]
[1748007849297,5.6014,178.5,178.48,0.03946199]
[1748007849496,0.03990097,178.52,178.48,0.03946199]
[1748007849697,5.6014,178.49,178.48,0.03946199]
[1748007849997,0.03990097,178.52,178.48,0.03946199]
[1748007850505,5.64060097,178.52,178.48,5.64096199]
[1748007850708,0.03990097,178.52,178.48,0.03946199]
[1748007851501,0.03990097,178.52,178.51,5.6008]
[1748007851805,150.32,178.63,178.51,106.42]
[1748007852202,150.32,178.67,178.51,106.42]
[1748007852402,5.597,178.64,178.51,106.42]
[1748007852597,150.32,178.67,178.51,106.42]
[1748007852800,0.03574889,178.6,178.57,0.04179275]
[1748007853002,10.31166322,178.69,178.58,280.42459131]
[1748007853197,10.31166322,178.69,178.59,1.8587]
[1748007853506,10.31166322,178.69,178.59,256.74]
[1748007853906,5.63458856,178.64,178.61,0.03987219]
[1748007854107,0.03768856,178.64,178.61,0.03987219]
[1748007854512,5.63458856,178.64,178.61,0.03987219]
[1748007854812,0.03768856,178.64,178.61,0.03987219]
[1748007855217,5.5971,178.63,178.61,0.03987219]
[1748007855711,5.5973,178.62,178.61,0.03987219]
[1748007856312,0.03768856,178.64,178.61,0.03987219]
[1748007856811,150.28,178.8,178.61,5.63987219]
[1748007857013,150.28,178.8,178.62,1.9353]
[1748007857313,1.9161,178.76,178.68,5.5952]
[1748007857508,3.7654,178.82,178.69,256.68]
[1748007857714,10.31166322,178.83,178.7,150.28]
[1748007857909,10.31166322,178.83,178.73,23.72208941]
[1748007858404,10.31166322,178.83,178.73,0.0374981]
[1748007858707,10.31166322,178.83,178.73,256.6174981]
[1748007858912,0.03890152,178.8,178.73,256.6174981]
[1748007859216,5.5924,178.78,178.73,256.6174981]
[1748007859413,0.03890152,178.8,178.73,256.6174981]
[1748007859608,5.5933,178.75,178.73,256.6174981]
[1748007859813,0.03690243,178.76,178.73,256.6174981]
[1748007860108,150.22,178.86,178.73,256.62177117]
[1748007860308,150.22,178.9,178.73,256.58]
[1748007860810,150.22,178.9,178.72,5.5942]
[1748007861002,23.68459131,178.87,178.71,256.58]
[1748007861205,5.592,178.8,178.77,0.0399433]
[1748007861401,0.0358138,178.81,178.77,0.0399433]
[1748007862413,5.5923,178.78,178.77,0.0399433]
[1748007863305,5.5935,178.75,178.71,256.58]
[1748007863506,1.9925,178.8,178.67,256.5]
[1748007863808,1.9393,178.79,178.67,256.5]
[1748007864014,25.62389131,178.79,178.67,256.5]
[1748007864313,0.04023655,178.75,178.72,5.5942]
[1748007864507,0.04023655,178.75,178.71,0.03862742]
[1748007868317,5.5939,178.74,178.71,0.03862742]
[1748007868518,0.04023655,178.75,178.71,0.03862742]
[1748007870224,1.9061,178.83,178.72,150.16]
[1748007870518,150.16,178.86,178.72,150.16]
[1748007870714,1.9834,178.89,178.74,23.68459131]
[1748007870914,1.8844,178.91,178.75,589.68]
[1748007871218,0.03880658,178.85,178.81,0.03571615]
[1748007871410,0.03880658,178.85,178.82,150.16]
[1748007871607,0.03880658,178.85,178.83,106.3]
[1748007872310,0.03880658,178.85,178.81,0.03571615]
[1748007872608,0.03880658,178.85,178.82,256.46]
[1748007873219,1.9581,178.93,178.82,256.46]
[1748007873411,1.8532,178.99,178.83,23.68459131]
[1748007873611,1.8532,178.99,178.83,24.36159131]
[1748007874012,1.8435,179.01,178.88,23.68459131]
[1748007874214,0.03871073,178.96,178.93,0.03919735]
[1748007874408,0.03871073,178.96,178.94,255.78]
[1748007874924,0.03871073,178.96,178.93,0.03919735]
[1748007876319,5.5873,178.94,178.93,0.03919735]
[1748007876920,5.5884,178.91,178.89,149.5]
[1748007877115,25.52809131,179.01,178.89,149.5]
[1748007877320,171.0,179.0,178.89,149.5]
[1748007877726,171.0,178.99,178.79,483.1]
[1748007877921,5.5892,178.89,178.87,0.03578965]
[1748007878122,0.03554356,178.91,178.87,0.03578965]
[1748007878421,5.5892,178.88,178.87,0.03578965]
[1748007880021,0.03554356,178.91,178.81,149.46]
[1748007880224,1.9473,178.9,178.77,261.2726]
[1748007880421,1.9473,178.9,178.77,255.68]
[1748007881018,0.03689763,178.85,178.82,0.04295474]
[1748007881222,5.5908,178.83,178.82,0.04295474]
[1748007882427,0.03689763,178.85,178.7,483.06]
[1748007882623,1.9546,178.84,178.7,589.3]
[1748007883023,1.9546,178.84,178.71,5.5944]
[1748007883223,1.9546,178.84,178.7,589.3]
[1748007883727,0.03866408,178.79,178.75,0.03974036]
[1748007883921,0.03866408,178.79,178.75,149.49974036]
[1748007884122,5.5929,178.77,178.75,149.49974036]
[1748007884322,0.03866408,178.79,178.75,149.49974036]
[1748007885833,5.593,178.76,178.75,0.03974036]
[1748007886131,0.03866408,178.79,178.7,149.46]
[1748007886437,5.594,178.73,178.7,149.46]
[1748007886734,1.8708,178.8,178.7,149.46]
[1748007886932,1.8708,178.8,178.71,5.5944]
[1748007887131,0.04161398,178.77,178.74,0.03596002]
[1748007888233,0.04161398,178.77,178.75,149.46]
[1748007888432,1.9748,178.87,178.76,106.24]
[1748007889235,1.9748,178.87,178.73,5.5938]
[1748007889442,0.0371324,178.82,178.78,0.03540388]
[1748007889736,5.5916,178.81,178.78,0.03540388]
[1748007889938,0.0371324,178.82,178.78,0.03540388]
[1748007891432,5.6283324,178.82,178.78,0.03540388]
[1748007891633,0.0371324,178.82,178.78,0.03540388]
[1748007892231,0.0371324,178.82,178.78,149.51540388]
[1748007892636,0.0371324,178.82,178.8,5.5915]
[1748007892835,0.0371324,178.82,178.78,149.51540388]
[1748007893339,0.0371324,178.82,178.78,0.03540388]
[1748007893740,5.592,178.8,178.78,0.03540388]
[1748007893937,0.0371324,178.82,178.78,0.03540388]
[1748007894539,23.68459131,178.95,178.78,23.71999519]
[1748007894740,1.8543,178.93,178.78,23.68459131]
[1748007895540,0.03850945,178.87,178.85,5.5901]
[1748007895839,0.0366789,178.88,178.85,106.26]
[1748007896239,0.0366789,178.88,178.84,0.03579373]
[1748007896444,0.0366789,178.88,178.84,5.62609373]
[1748007896647,0.0366789,178.88,178.84,0.03579373]
[1748007896839,632.64,179.02,178.84,0.03579373]
[1748007897036,5.5864,178.97,178.83,483.16]
[1748007897344,1.8358,179.0,178.83,483.16]
[1748007897644,1.8358,179.0,178.93,5.5874]
[1748007897839,1.8358,179.0,178.95,0.03866435]
[1748007898145,5.587,178.96,178.92,106.26]
[1748007898331,5.587,178.96,178.92,106.29615166]
[1748007898536,5.5876,178.93,178.92,106.29615166]
[1748007898732,5.5876,178.93,178.92,0.03615166]
[1748007898939,0.03966973,178.94,178.85,255.66]
[1748007899239,5.5889,178.89,178.85,255.66]
[1748007899441,149.44,178.97,178.85,255.66]
[1748007899749,149.44,178.97,178.85,261.2499]
[1748007899946,0.03549318,178.93,178.89,0.04036884]
[1748007900637,0.03549318,178.93,178.9,149.42]
[1748007900838,0.03549318,178.93,178.89,0.04036884]
[1748007902046,0.03549318,178.93,178.87,4.53177626]
[1748007902839,0.03549318,178.93,178.88,0.03629429]
[1748007903040,0.03549318,178.93,178.87,4.53177626]
[1748007903247,23.68459131,178.91,178.75,2.014]
[1748007903444,149.42,178.92,178.79,5.04655676]
[1748007903648,149.42,178.92,178.79,154.46655676]
[1748007903843,149.42,178.92,178.84,5.5902]
[1748007904148,0.04232869,178.9,178.86,0.03915309]
[1748007904449,5.5895,178.87,178.86,0.03915309]
[1748007904645,0.04232869,178.9,178.86,0.03915309]
[1748007905244,23.72692,178.9,178.79,5.04655676]
[1748007905446,5.5904,178.85,178.79,5.04655676]
[1748007905646,23.68459131,178.9,178.79,5.04655676]
[1748007906145,149.42,178.92,178.79,5.04655676]
[1748007906352,0.04008575,178.86,178.83,0.04253347]
[1748007906950,0.04008575,178.86,178.77,255.0]
[1748007907848,0.04008575,178.86,178.78,1.9286]
[1748007908039,0.04008575,178.86,178.82,5.5909]
[1748007908350,0.04008575,178.86,178.8,0.0392361]
[1748007909253,5.5914,178.81,178.8,0.0392361]
[1748007909552,0.04175633,178.82,178.8,0.0392361]
[1748007910648,0.00551197,178.82,178.81,148.8]
[1748007910846,0.00551197,178.82,178.8,0.0392361]
[1748007911848,5.59681197,178.82,178.8,0.0392361]
[1748007912053,1.8438,178.9,178.8,0.0392361]
[1748007912350,148.8,178.99,178.81,172.48459131]
[1748007912545,148.8,178.99,178.82,5.4925]
[1748007912744,148.8,178.99,178.83,106.22]
[1748007912945,148.8,178.99,178.82,5.4925]
[1748007912946,5.5887,178.9,178.89,0.04091712]
[1748007913350,5.5887,178.9,178.89,1.712e-05]
[1748007913548,11.1687,178.9,178.89,1.712e-05]
[1748007913950,29.26459131,178.9,178.74,110.0428]
[1748007914254,148.8,178.89,178.75,5.04655676]
[1748007914952,0.04001574,178.84,178.8,0.03823377]
[1748007915156,0.04001574,178.84,178.8,0.03898219]
[1748007916051,0.04001574,178.84,178.8,106.27898219]
[1748007916544,0.04001574,178.84,178.83,5.5908]
[1748007916750,0.04001574,178.84,178.8,0.03898219]
[1748007917152,0.04001574,178.84,178.81,4.52436401]
[1748007917652,0.04001574,178.84,178.8,0.03898219]
[1748007918159,5.5914,178.81,178.8,0.03898219]
[1748007918752,5.5923,178.78,178.77,5.04655676]
[1748007919149,5.5939,178.73,178.72,10.08832839]
[1748007920255,0.0406721,178.74,178.72,10.08832839]
[1748007920459,0.0406721,178.74,178.71,0.04012906]
[1748007920853,5.5942,178.72,178.71,0.04012906]
[1748007922058,5.5958,178.67,178.64,255.06]
[1748007922258,148.86,178.73,178.6,148.86]